fUSD/lending_fUSD_20260605
["ID","MTS","AMOUNT","RATE_DAILY","PERIOD"]
[424194055,1780640866000,25682.23379396,8.239e-05,3]
[424194064,1780640903000,-150.0,7.992e-05,2]
[424194067,1780640921000,200.63,9.001e-05,7]
[424194069,1780640941000,2000.0,0.00030128,120]
[424194079,1780640957000,-250.0,8.791e-05,2]
[424194072,1780640957000,-500.0,8.239e-05,2]
[424194074,1780640957000,-386.08655351,8.239e-05,2]
[424194073,1780640957000,-150.0,7.992e-05,2]
[424194075,1780640957000,-196.44180665,8.239e-05,2]
[424194077,1780640957000,-350.0,8.724e-05,2]
[424194081,1780640957000,-200.0,9.001e-05,2]
[424194076,1780640957000,-215.77576141,8.268e-05,2]
[424194078,1780640957000,-150.0,8.768e-05,2]
[424194087,1780640957000,-500.0,9.038e-05,2]
[424194085,1780640957000,-500.0,9.038e-05,2]
[424194086,1780640957000,-500.0,9.038e-05,2]
[424194080,1780640957000,-284.17867651,8.791e-05,2]
[424194088,1780640957000,-93.90345223,9.038e-05,2]
[424194083,1780640957000,-500.0,9.038e-05,2]
[424194082,1780640957000,-152.28080769,9.038e-05,2]
[424194084,1780640957000,-500.0,9.038e-05,2]
[424194092,1780640991000,165.69425838,9.665e-05,3]
[424194146,1780641032000,-500.0,9.037e-05,2]
[424194134,1780641032000,-500.0,9.037e-05,2]
[424194148,1780641032000,-500.0,9.037e-05,2]
[424194157,1780641032000,-1869.92264346,9.063e-05,2]
[424194153,1780641032000,-500.0,9.037e-05,2]
[424194151,1780641032000,-500.0,9.037e-05,2]
[424194154,1780641032000,-1200.0,9.039e-05,2]
[424194145,1780641032000,-500.0,9.037e-05,2]
[424194158,1780641032000,-13534.83,9.407e-05,2]
[424194152,1780641032000,-500.0,9.037e-05,2]
[424194150,1780641032000,-500.0,9.037e-05,2]
[424194149,1780641032000,-500.0,9.037e-05,2]
[424194136,1780641032000,-500.0,9.037e-05,2]
[424194130,1780641032000,-500.0,9.037e-05,2]
[424194147,1780641032000,-500.0,9.037e-05,2]
[424194141,1780641032000,-500.0,9.037e-05,2]
[424194144,1780641032000,-500.0,9.037e-05,2]
[424194127,1780641032000,-186.63584246,9.037e-05,2]
[424194143,1780641032000,-500.0,9.037e-05,2]
[424194140,1780641032000,-500.0,9.037e-05,2]
[424194138,1780641032000,-574.83209798,9.037e-05,2]
[424194128,1780641032000,-500.0,9.037e-05,2]
[424194125,1780641032000,-250.0,8.99e-05,2]
[424194126,1780641032000,-313.36415754,9.037e-05,2]
[424194123,1780641032000,-150.0,8.768e-05,2]
[424194124,1780641032000,-250.0,8.903e-05,2]
[424194132,1780641032000,-500.0,9.037e-05,2]
[424194155,1780641032000,-205.59246436,9.039e-05,2]
[424194129,1780641032000,-500.0,9.037e-05,2]
[424194159,1780641032000,-186.63,9.427e-05,2]
[424194156,1780641032000,-14745.96829293,9.04e-05,2]
[424194186,1780641032000,-615.70024287,0.000107,2]
[424194187,1780641032000,-329.85509709,0.000107,2]
[424194184,1780641032000,-12222.2,0.000107,2]
[424194183,1780641032000,-3085.93077085,0.000107,2]
[424194179,1780641032000,-38689.28003878,0.000107,2]
[424194178,1780641032000,-429998.62436538,0.000107,2]
[424194181,1780641032000,-17717.97233424,0.000107,2]
[424194182,1780641032000,-13388.80885956,0.000107,2]
[424194180,1780641032000,-48923.31001457,0.000107,2]
[424194176,1780641032000,-3360.611,0.00010486,2]
[424194175,1780641032000,-160.0,0.00010359,2]
[424194188,1780641032000,-1222.84,0.000107,2]
[424194174,1780641032000,-7275.838781,0.000103,2]
[424194177,1780641032000,-181.501,0.00010486,2]
[424194162,1780641032000,-250.0,9.645e-05,2]
[424194161,1780641032000,-1646.6585951,9.5e-05,2]
[424194172,1780641032000,-150.0,0.00010299,2]
[424194173,1780641032000,-209618.28409386,0.000103,2]
[424194166,1780641032000,-1680.0,9.943e-05,2]
[424194170,1780641032000,-362.09,0.00010148,2]
[424194164,1780641032000,-250.0,9.697e-05,2]
[424194171,1780641032000,-152.28080768,0.000102,2]
[424194168,1780641032000,-226.0,0.0001,2]
[424194169,1780641032000,-228.7636701,0.0001,2]
[424194165,1780641032000,-10720.85,9.898e-05,2]
[424194163,1780641032000,-152.28080768,9.669e-05,2]
[424194160,1780641032000,-1535.16,9.475e-05,2]
[424194167,1780641032000,-226.0,0.0001,2]
[424194192,1780641034000,-2000.0,0.00015,7]
[424194210,1780641038000,-343.94602242,0.000107,2]
[424194204,1780641038000,-5381.62093026,0.000107,2]
[424194205,1780641038000,-19804.66007236,0.000107,2]
[424194203,1780641038000,-370.46073927,0.000107,2]
[424194206,1780641038000,-2751.52709176,0.000107,2]
[424194207,1780641038000,-18800.72820822,0.000107,2]
[424194208,1780641038000,-11449.31810408,0.000107,2]
[424194209,1780641038000,-2878.1571425,0.000107,2]
[424194216,1780641038000,-696.22831099,0.000107,2]
[424194212,1780641038000,-701.0,0.000107,2]
[424194213,1780641038000,-618.0,0.000107,2]
[424194214,1780641038000,-5091.90804701,0.000107,2]
[424194215,1780641038000,-10855.54555861,0.000107,2]
[424194217,1780641038000,-1114.67976966,0.000107,2]
[424194218,1780641038000,-1229.82,0.000107,2]
[424194219,1780641038000,-77846.63551061,0.000107,2]
[424194211,1780641038000,-815.79999999,0.000107,2]
[424194370,1780641040000,-1697.65227232,0.000107,2]
[424194369,1780641040000,-850.46247768,0.000107,2]
[424194371,1780641040000,-98144.98230891,0.000107,2]
[424194372,1780641040000,-817.08299707,0.000107,2]
[424194374,1780641040000,-5067.95141621,0.000107,2]
[424194375,1780641040000,-3550.705,0.000107,2]
[424194373,1780641040000,-39072.39504063,0.000107,2]
[424194388,1780641043000,-729.11141954,0.000107,2]
[424194409,1780641066000,-61500.0,0.000107,2]
[424194416,1780641067000,-1426.34585682,0.000107,2]
[424194410,1780641067000,-464.504,0.000107,2]
[424194411,1780641067000,-3437.60792536,0.000107,2]
[424194412,1780641067000,-1854.4003738,0.000107,2]
[424194413,1780641067000,-3899.58486403,0.000107,2]
[424194414,1780641067000,-9240.75444256,0.000107,2]
[424194418,1780641067000,-2676.86315868,0.000107,2]
[424194415,1780641067000,-294.95948633,0.000107,2]
[424194417,1780641067000,-1912.08509072,0.000107,2]
[424194419,1780641067000,-6443.9844399,0.000107,2]
[424194424,1780641067000,-616.76,0.000107,2]
[424194420,1780641067000,-2468.0,0.000107,2]
[424194429,1780641067000,-8834.14401579,0.000107,2]
[424194428,1780641067000,-739.45547386,0.000107,2]
[424194426,1780641067000,-373.99907617,0.000107,2]
[424194427,1780641067000,-2221.7404471,0.000107,2]
[424194421,1780641067000,-3965.27281942,0.000107,2]
[424194423,1780641067000,-462.31375,0.000107,2]
[424194430,1780641067000,-30680.0,0.000107,2]
[424194422,1780641067000,-9125.69,0.000107,2]
[424194425,1780641067000,-635.6461173,0.000107,2]
[424194431,1780641086000,152.0,0.00010794,7]
[424194432,1780641121000,266.78812099,0.00030136,120]
[424194433,1780641123000,-295.34352704,8.237e-05,2]
[424194434,1780641123000,-1152.34991761,8.237e-05,2]
[424194436,1780641123000,-500.0,9.037e-05,2]
[424194437,1780641123000,-500.0,9.037e-05,2]
[424194439,1780641123000,-500.0,9.037e-05,2]
[424194440,1780641123000,-213.92512411,9.037e-05,2]
[424194442,1780641123000,-10.61280252,9.037e-05,2]
[424194441,1780641123000,-286.07487589,9.037e-05,2]
[424194435,1780641123000,-215.77576141,8.237e-05,2]
[424194443,1780641123000,-489.38719748,9.037e-05,2]
[424194444,1780641123000,-500.0,9.037e-05,2]
[424194451,1780641123000,-214.29691695,9.869e-05,2]
[424194450,1780641123000,-35.70308305,9.869e-05,2]
[424194448,1780641123000,-603.59268348,9.039e-05,2]
[424194438,1780641123000,-500.0,9.037e-05,2]
[424194446,1780641123000,-500.0,9.037e-05,2]
[424194447,1780641123000,-574.83209798,9.037e-05,2]
[424194449,1780641123000,-500.0,9.039e-05,2]
[424194445,1780641123000,-500.0,9.037e-05,2]
[424194452,1780641124000,-1470.54144028,9.9e-05,2]
[424194453,1780641124000,-250.0,9.941e-05,2]
[424194454,1780641124000,-36.85844522,0.00010174,2]
[424194456,1780641124000,-3703.51506199,0.000107,2]
[424194455,1780641124000,-2615.4258831,0.00010174,2]
[424194457,1780641143000,387.37927332,0.00030137,120]
[424194459,1780641179000,3097.67140015,0.00015,10]
[424194460,1780641198000,268.93749028,8.402e-05,7]
[424194461,1780641199000,403.40623543,8.896e-05,7]
[424194462,1780641200000,597.5177272,0.00030137,120]
[424194464,1780641260000,416.12,0.00030082,120]
[424194470,1780641393000,239.98,9.957e-05,3]
[424194473,1780641453000,-150.0,7.99e-05,2]
[424194476,1780641506000,597.5177272,0.00030137,120]
[424194475,1780641506000,-263.92305246,8.236e-05,2]
[424194478,1780641559000,-150.0,9.032e-05,2]
[424194481,1780641613000,-500.0,9.033e-05,2]
[424194482,1780641628000,-600.16421255,9.032e-05,2]
[424194483,1780641628000,492.0,0.00030136,120]
[424194485,1780641643000,-599.83578745,9.032e-05,2]
[424194486,1780641659000,-321.46660744,9.034e-05,2]
[424194488,1780641712000,-536.59754593,9.032e-05,2]
[424194490,1780641766000,-227.55104693,9.032e-05,2]
[424194491,1780641820000,-500.0,9.031e-05,2]
[424194496,1780641868000,-500.0,0.00038776,120]
[424194497,1780641868000,-500.0,0.00038776,120]
[424194498,1780641868000,-500.0,0.00038776,120]
[424194495,1780641868000,-500.0,0.00038776,120]
[424194500,1780641868000,-500.0,0.00038776,120]
[424194501,1780641868000,-339.25642773,0.00038776,120]
[424194502,1780641868000,-500.0,0.00038776,120]
[424194503,1780641868000,-500.0,0.00038776,120]
[424194499,1780641868000,-500.0,0.00038776,120]
[424194522,1780641869000,-500.0,0.00038776,120]
[424194521,1780641869000,-500.0,0.00038776,120]
[424194524,1780641869000,-500.0,0.00038776,120]
[424194523,1780641869000,-500.0,0.00038776,120]
[424194525,1780641869000,-500.0,0.00038776,120]
[424194527,1780641869000,-500.0,0.00038776,120]
[424194532,1780641869000,-500.0,0.00038776,120]
[424194528,1780641869000,-500.0,0.00038776,120]
[424194530,1780641869000,-500.0,0.00038776,120]
[424194529,1780641869000,-558.47,0.00038776,120]
[424194520,1780641869000,-261.61573725,0.00038776,120]
[424194526,1780641869000,-558.47,0.00038776,120]
[424194519,1780641869000,-500.0,0.00038776,120]
[424194512,1780641869000,-500.0,0.00038776,120]
[424194518,1780641869000,-500.0,0.00038776,120]
[424194515,1780641869000,-500.0,0.00038776,120]
[424194516,1780641869000,-251.13001451,0.00038776,120]
[424194513,1780641869000,-500.0,0.00038776,120]
[424194514,1780641869000,-500.0,0.00038776,120]
[424194511,1780641869000,-500.0,0.00038776,120]
[424194508,1780641869000,-500.0,0.00038776,120]
[424194507,1780641869000,-500.0,0.00038776,120]
[424194510,1780641869000,-500.0,0.00038776,120]
[424194509,1780641869000,-548.38729241,0.00038776,120]
[424194505,1780641869000,-500.0,0.00038776,120]
[424194506,1780641869000,-500.0,0.00038776,120]
[424194504,1780641869000,-500.0,0.00038776,120]
[424194517,1780641869000,-500.0,0.00038776,120]
[424194531,1780641869000,-500.0,0.00038776,120]
[424194538,1780641869000,-500.0,0.00038776,120]
[424194534,1780641869000,-500.0,0.00038776,120]
[424194533,1780641869000,-500.0,0.00038776,120]
[424194562,1780641869000,-558.47,0.00038776,120]
[424194561,1780641869000,-218.51946456,0.00038776,120]
[424194560,1780641869000,-500.0,0.00038776,120]
[424194559,1780641869000,-500.0,0.00038776,120]
[424194558,1780641869000,-558.47,0.00038776,120]
[424194557,1780641869000,-500.0,0.00038776,120]
[424194556,1780641869000,-500.0,0.00038776,120]
[424194555,1780641869000,-500.0,0.00038776,120]
[424194554,1780641869000,-558.47,0.00038776,120]
[424194553,1780641869000,-500.0,0.00038776,120]
[424194552,1780641869000,-500.0,0.00038776,120]
[424194550,1780641869000,-558.47,0.00038776,120]
[424194546,1780641869000,-558.47,0.00038776,120]
[424194540,1780641869000,-500.0,0.00038776,120]
[424194548,1780641869000,-500.0,0.00038776,120]
[424194536,1780641869000,-500.0,0.00038776,120]
[424194539,1780641869000,-500.0,0.00038776,120]
[424194549,1780641869000,-500.0,0.00038776,120]
[424194541,1780641869000,-500.0,0.00038776,120]
[424194542,1780641869000,-558.47,0.00038776,120]
[424194537,1780641869000,-558.47,0.00038776,120]
[424194543,1780641869000,-500.0,0.00038776,120]
[424194544,1780641869000,-500.0,0.00038776,120]
[424194547,1780641869000,-500.0,0.00038776,120]
[424194551,1780641869000,-500.0,0.00038776,120]
[424194545,1780641869000,-500.0,0.00038776,120]
[424194535,1780641869000,-500.0,0.00038776,120]
[424194567,1780641870000,-458.02106354,0.00038776,120]
[424194566,1780641870000,-500.0,0.00038776,120]
[424194565,1780641870000,-558.47,0.00038776,120]
[424194564,1780641870000,-500.0,0.00038776,120]
[424194563,1780641870000,-500.0,0.00038776,120]
[424194572,1780641995000,500.0,0.00030137,120]
[424194573,1780642001000,500.0,0.00030137,120]
[424194574,1780642009000,500.0,0.00023,30]
[424194575,1780642015000,-373.45052764,9.03e-05,2]
[424194578,1780642073000,152.46,0.00023,30]
[424194583,1780642148000,316.17884674,0.00011987,3]
[424194634,1780642234000,-500.0,9.029e-05,2]
[424194618,1780642234000,-500.0,9.029e-05,2]
[424194628,1780642234000,-500.0,9.029e-05,2]
[424194629,1780642234000,-463.75688074,9.029e-05,2]
[424194617,1780642234000,-500.0,9.029e-05,2]
[424194620,1780642234000,-500.0,9.029e-05,2]
[424194624,1780642234000,-500.0,9.029e-05,2]
[424194619,1780642234000,-500.0,9.029e-05,2]
[424194633,1780642234000,-500.0,9.029e-05,2]
[424194622,1780642234000,-500.0,9.029e-05,2]
[424194625,1780642234000,-500.0,9.029e-05,2]
[424194627,1780642234000,-500.0,9.029e-05,2]
[424194626,1780642234000,-500.0,9.029e-05,2]
[424194632,1780642234000,-500.0,9.029e-05,2]
[424194630,1780642234000,-500.0,9.029e-05,2]
[424194614,1780642234000,-500.0,9.029e-05,2]
[424194637,1780642234000,-500.0,9.029e-05,2]
[424194636,1780642234000,-500.0,9.029e-05,2]
[424194623,1780642234000,-500.0,9.029e-05,2]
[424194611,1780642234000,-500.0,9.029e-05,2]
[424194604,1780642234000,-500.0,9.029e-05,2]
[424194615,1780642234000,-500.0,9.029e-05,2]
[424194593,1780642234000,-152.46836419,8.999e-05,2]
[424194595,1780642234000,-10.49136855,8.999e-05,2]
[424194598,1780642234000,-921.54432621,9.028e-05,2]
[424194597,1780642234000,-600.16421255,9e-05,2]
[424194603,1780642234000,-563.74022674,9.029e-05,2]
[424194600,1780642234000,-500.0,9.029e-05,2]
[424194602,1780642234000,-569.90610655,9.029e-05,2]
[424194594,1780642234000,-152.46836419,8.999e-05,2]
[424194599,1780642234000,-278.45567379,9.028e-05,2]
[424194612,1780642234000,-500.0,9.029e-05,2]
[424194596,1780642234000,-141.97699564,8.999e-05,2]
[424194639,1780642234000,-500.0,9.029e-05,2]
[424194605,1780642234000,-500.0,9.029e-05,2]
[424194606,1780642234000,-500.0,9.029e-05,2]
[424194608,1780642234000,-500.0,9.029e-05,2]
[424194607,1780642234000,-500.0,9.029e-05,2]
[424194616,1780642234000,-500.0,9.029e-05,2]
[424194613,1780642234000,-500.0,9.029e-05,2]
[424194610,1780642234000,-500.0,9.029e-05,2]
[424194609,1780642234000,-500.0,9.029e-05,2]
[424194601,1780642234000,-500.0,9.029e-05,2]
[424194641,1780642234000,-500.0,9.029e-05,2]
[424194621,1780642234000,-500.0,9.029e-05,2]
[424194640,1780642234000,-591.94944159,9.029e-05,2]
[424194666,1780642234000,-76.40363381,9.029e-05,2]
[424194669,1780642234000,-419.00363381,9.029e-05,2]
[424194667,1780642234000,-423.59636619,9.029e-05,2]
[424194668,1780642234000,-500.0,9.029e-05,2]
[424194665,1780642234000,-500.0,9.029e-05,2]
[424194672,1780642234000,-500.0,9.029e-05,2]
[424194673,1780642234000,-500.0,9.029e-05,2]
[424194674,1780642234000,-500.0,9.029e-05,2]
[424194675,1780642234000,-201.29870444,9.029e-05,2]
[424194670,1780642234000,-80.99636619,9.029e-05,2]
[424194677,1780642234000,-170.05465725,9.029e-05,2]
[424194676,1780642234000,-298.70129556,9.029e-05,2]
[424194679,1780642234000,-500.0,9.029e-05,2]
[424194681,1780642234000,-150.0,9.03e-05,2]
[424194678,1780642234000,-329.94534275,9.029e-05,2]
[424194680,1780642234000,-551.6375688,9.029e-05,2]
[424194683,1780642234000,-150.0,9.119e-05,2]
[424194684,1780642234000,-84.24873431,9.133e-05,2]
[424194685,1780642234000,-915.75126569,9.133e-05,2]
[424194635,1780642234000,-500.0,9.029e-05,2]
[424194682,1780642234000,-500.0,9.03e-05,2]
[424194671,1780642234000,-500.0,9.029e-05,2]
[424194638,1780642234000,-500.0,9.029e-05,2]
[424194660,1780642234000,-147.70025549,9.029e-05,2]
[424194642,1780642234000,-453.47600484,9.029e-05,2]
[424194647,1780642234000,-500.0,9.029e-05,2]
[424194659,1780642234000,-439.49031378,9.029e-05,2]
[424194648,1780642234000,-500.0,9.029e-05,2]
[424194651,1780642234000,-500.0,9.029e-05,2]
[424194646,1780642234000,-505.27891725,9.029e-05,2]
[424194645,1780642234000,-445.90014445,9.029e-05,2]
[424194650,1780642234000,-500.0,9.029e-05,2]
[424194649,1780642234000,-500.0,9.029e-05,2]
[424194652,1780642234000,-500.0,9.029e-05,2]
[424194653,1780642234000,-500.0,9.029e-05,2]
[424194644,1780642234000,-281.77240399,9.029e-05,2]
[424194643,1780642234000,-500.0,9.029e-05,2]
[424194657,1780642234000,-516.37568808,9.029e-05,2]
[424194658,1780642234000,-60.50968622,9.029e-05,2]
[424194663,1780642234000,-308.27974451,9.029e-05,2]
[424194662,1780642234000,-191.72025549,9.029e-05,2]
[424194661,1780642234000,-352.29974451,9.029e-05,2]
[424194656,1780642234000,-500.0,9.029e-05,2]
[424194655,1780642234000,-500.0,9.029e-05,2]
[424194654,1780642234000,-500.0,9.029e-05,2]
[424194664,1780642234000,-500.0,9.029e-05,2]
[424194700,1780642235000,-1210.12989269,9.931e-05,2]
[424194694,1780642235000,-2000.0,9.749e-05,2]
[424194695,1780642235000,-257.74995545,9.8e-05,2]
[424194696,1780642235000,-634.99341422,9.852e-05,2]
[424194691,1780642235000,-500.0,9.578e-05,2]
[424194688,1780642235000,-500.0,9.304e-05,2]
[424194697,1780642235000,-1129.1,9.854e-05,2]
[424194692,1780642235000,-200.0,9.694e-05,2]
[424194689,1780642235000,-4118.33,9.351e-05,2]
[424194699,1780642235000,-469.87010731,9.931e-05,2]
[424194698,1780642235000,-164.92,9.9e-05,2]
[424194693,1780642235000,-362.9387368,9.728e-05,2]
[424194686,1780642235000,-215.77576141,9.17e-05,2]
[424194687,1780642235000,-259.97,9.193e-05,2]
[424194690,1780642235000,-156.97203393,9.391e-05,2]
[424194703,1780642235000,-1775.76,0.00010027,2]
[424194705,1780642235000,-944.9332645,0.00010278,2]
[424194702,1780642235000,-172.88417809,9.933e-05,2]
[424194704,1780642235000,-830.8267355,0.00010278,2]
[424194714,1780642235000,-72.80335855,0.0001058,2]
[424194717,1780642235000,-120318.42699961,0.0001058,2]
[424194716,1780642235000,-35.07815327,0.0001058,2]
[424194715,1780642235000,-250.0,0.0001058,2]
[424194712,1780642235000,-178.386,0.00010579,2]
[424194710,1780642235000,-351.02307539,0.00010579,2]
[424194718,1780642235000,-46361.47929153,0.000106,2]
[424194711,1780642235000,-135.45340825,0.00010579,2]
[424194701,1780642235000,-82.11582191,9.933e-05,2]
[424194708,1780642235000,-156.73661998,0.00010536,2]
[424194707,1780642235000,-1775.76,0.00010529,2]
[424194706,1780642235000,-150.85659916,0.00010475,2]
[424194713,1780642235000,-177.19664145,0.0001058,2]
[424194709,1780642235000,-2851.71351636,0.00010579,2]
[424194724,1780642238000,-46771.55231606,0.000106,2]
[424194725,1780642238000,-7407.31391804,0.000106,2]
[424194727,1780642238000,-516.70824417,0.000106,2]
[424194730,1780642238000,-1466.25518156,0.000106,2]
[424194728,1780642238000,-545.85460464,0.000106,2]
[424194831,1780642239000,-2208.74522651,0.000106,2]
[424194827,1780642239000,-777.36395131,0.000106,2]
[424194788,1780642239000,-4143.25905905,0.000106,2]
[424194785,1780642239000,-4730.75089867,0.000106,2]
[424194790,1780642239000,-7531.79863107,0.000106,2]
[424194792,1780642239000,-1428.77227403,0.000106,2]
[424194829,1780642239000,-4255.98826754,0.000106,2]
[424194997,1780642240000,-19999.755009,0.000106,2]
[424194993,1780642240000,-1068.32136773,0.000106,2]
[424194955,1780642240000,-332.11298935,0.000106,2]
[424194957,1780642240000,-11573.99686272,0.000106,2]
[424194959,1780642240000,-17430.354052,0.000106,2]
[424194998,1780642241000,-42981.14140928,0.000106,2]
[424195008,1780642243000,-3687.24278112,0.000106,2]
[424195009,1780642244000,-10560.3932,0.000106,2]
[424195010,1780642244000,-540.11893994,0.000106,2]
[424195013,1780642246000,-1192.71690546,0.000106,2]
[424195016,1780642246000,-785.48129672,0.000106,2]
[424195014,1780642246000,-666.0,0.000106,2]
[424195015,1780642246000,-1131.37,0.000106,2]
[424195017,1780642266000,500.0,0.00013652,30]
[424195018,1780642267000,500.0,0.00013652,30]
[424195019,1780642268000,500.0,0.00013652,30]
[424195020,1780642268000,355.50912764,0.00013652,30]
[424195028,1780642322000,-151.0,0.00010633,2]
[424195034,1780642322000,-2153.85464792,0.00010636,2]
[424195031,1780642322000,-900.04107507,0.00010636,2]
[424195024,1780642322000,-500.0,0.000106,2]
[424195025,1780642322000,-500.0,0.00010603,2]
[424195032,1780642322000,-3679.27730239,0.00010636,2]
[424195027,1780642322000,-152.46836417,0.00010606,2]
[424195029,1780642322000,-150.0,0.00010635,2]
[424195035,1780642322000,-685.00229048,0.00010636,2]
[424195022,1780642322000,-40.95084713,0.00010052,2]
[424195023,1780642322000,-500.0,0.00010438,2]
[424195021,1780642322000,-459.04915287,0.00010052,2]
[424195026,1780642322000,-500.0,0.00010603,2]
[424195033,1780642322000,-2669.4975902,0.00010636,2]
[424195030,1780642322000,-284.81701602,0.00010636,2]
[424195036,1780642370000,-500.0,0.0001048,2]
[424195037,1780642387000,-500.0,0.0001048,2]
[424195038,1780642402000,-500.0,0.0001048,2]
[424195039,1780642418000,-500.0,0.0001048,2]
[424195040,1780642434000,-298.536,0.0001027,2]
[424195042,1780642438000,-4814.16,0.0001048,2]
[424195041,1780642438000,-185.84,0.0001027,2]
[424195043,1780642439000,-5000.0,0.0001048,2]
[424195044,1780642440000,-5000.0,0.0001048,2]
[424195045,1780642441000,-5000.0,0.0001048,2]
[424195047,1780642442000,-150.0,0.00010479,2]
[424195046,1780642442000,-5000.0,0.0001048,2]
[424195049,1780642443000,-5000.0,0.0001048,2]
[424195048,1780642443000,-4850.0,0.0001048,2]
[424195050,1780642444000,-500.0,0.00010479,2]
[424195052,1780642444000,-247.24068279,0.00010479,2]
[424195051,1780642444000,-500.0,0.00010479,2]
[424195053,1780642444000,-3752.75931721,0.0001048,2]
[424195054,1780642445000,-5000.0,0.0001048,2]
[424195055,1780642446000,-5000.0,0.0001048,2]
[424195056,1780642447000,-5000.0,0.0001048,2]
[424195057,1780642448000,-5000.0,0.0001048,2]
[424195058,1780642449000,-5000.0,0.0001048,2]
[424195059,1780642450000,-5000.0,0.0001048,2]
[424195060,1780642451000,-5000.0,0.0001048,2]
[424195061,1780642451000,-5000.0,0.0001048,2]
[424195062,1780642452000,-5000.0,0.0001048,2]
[424195063,1780642453000,-5000.0,0.0001048,2]
[424195064,1780642454000,-5000.0,0.0001048,2]
[424195065,1780642455000,-5000.0,0.0001048,2]
[424195066,1780642488000,-500.0,0.00010479,2]
[424195067,1780642540000,-447.0,9.029e-05,2]
[424195068,1780642557000,-447.0,9.029e-05,2]
[424195069,1780642571000,-300.0,9.029e-05,2]
[424195070,1780642586000,-300.0,9.029e-05,2]
[424195073,1780642655000,-500.0,9.028e-05,2]
[424195071,1780642655000,-500.0,9.028e-05,2]
[424195072,1780642655000,-500.0,9.028e-05,2]
[424195075,1780642655000,-455.16375688,9.028e-05,2]
[424195076,1780642655000,-2544.83624312,9.029e-05,2]
[424195074,1780642655000,-500.0,9.028e-05,2]
[424195082,1780642656000,-1114.75592609,0.00010478,2]
[424195081,1780642656000,-270.08314433,9.932e-05,2]
[424195080,1780642656000,-166.61221942,9.029e-05,2]
[424195077,1780642656000,-289.64426875,9.029e-05,2]
[424195079,1780642656000,-841.3188791,9.029e-05,2]
[424195078,1780642656000,-2317.58556231,9.029e-05,2]
[424195084,1780642657000,-312.13010112,0.00010479,2]
[424195083,1780642657000,-85.24407391,0.00010478,2]
[424195085,1780642657000,-500.0,0.00010479,2]
[424195087,1780642657000,-317.43320339,0.00010479,2]
[424195088,1780642657000,-150.0,0.00010479,2]
[424195089,1780642657000,-3081.49737951,0.0001048,2]
[424195086,1780642657000,-553.69524207,0.00010479,2]
[424195091,1780642658000,-5000.0,0.0001048,2]
[424195090,1780642658000,-5000.0,0.0001048,2]
[424195092,1780642659000,-5000.0,0.0001048,2]
[424195093,1780642660000,-5000.0,0.0001048,2]
[424195094,1780642661000,-5000.0,0.0001048,2]
[424195096,1780642663000,-5000.0,0.0001048,2]
[424195095,1780642663000,-5000.0,0.0001048,2]
[424195097,1780642707000,633.23,0.00030082,120]
[424195098,1780642720000,-3800.0,0.0001048,2]
[424195101,1780642797000,-4612.4895044,0.0001048,2]
[424195100,1780642797000,-171.1306844,0.00010429,2]
[424195099,1780642797000,-216.3798112,0.0001028,2]
[424195102,1780642799000,-5000.0,0.0001048,2]
[424195103,1780642800000,-5000.0,0.0001048,2]
[424195106,1780642802000,-3300.0,0.0001048,2]
[424195105,1780642802000,-1200.0,0.00010479,2]
[424195104,1780642802000,-500.0,0.0001028,2]
[424195107,1780642803000,-500.0,0.0001028,2]
[424195109,1780642803000,-4350.0,0.0001048,2]
[424195108,1780642803000,-150.0,0.00010479,2]
[424195110,1780642805000,-500.0,0.00010479,2]
[424195111,1780642805000,-504.43779406,0.00010479,2]
[424195112,1780642805000,-3995.56220594,0.0001048,2]
[424195113,1780642807000,-5000.0,0.0001048,2]